{"text_format":"1","workbook":"xlsx","n_sheets":3,"sheets":["Main Calculator","Sheet1","Supporting Graph Data"],"not_rendered":{"charts":1,"images":0,"macros":1,"external_links":0,"defined_names":1,"comments":0,"pivot_tables":0},"unopened":[],"bounds":{"document_bytes":16777216,"sheet_cells":100000,"rows_first":2000,"rows_last":500,"rows_between":2000,"halvings":0,"cell_chars":16384,"cell_head_chars":4096},"cells_cut":0,"cells_raw":0,"read":"whole","date_system":"1900"}

{"sheet":"Main Calculator","index":0,"n_rows":40,"n_cols":12,"rows_kept":40,"cut":false,"hidden":false,"merged":[[13,0,14,2],[1,0,1,11],[0,0,0,11],[18,0,18,1],[17,0,17,2],[16,0,16,2],[15,0,15,2],[5,0,5,2],[6,0,6,1],[7,0,7,1],[9,0,9,1],[10,0,10,1],[34,0,34,1],[33,0,33,1],[32,0,32,1],[31,0,31,1],[30,0,30,1],[23,0,23,1],[22,0,22,1],[21,0,21,1],[20,0,20,1],[19,0,19,1],[28,0,28,2],[27,0,27,1],[26,0,26,1],[25,0,25,1],[24,0,24,1]]}
["Vehicle Cost Comparison Calculator"]
["Rental Vehicle vs Private Vehicle"]
[]
[null,"ENTER AMOUNTS IN YELLOW-HIGHLIGHTED FIELDS"]
[]
["Trip Information"]
["Roundtrip mileage (per Google Maps or MapQuest)"]
["Total days of rental"]
["Standard Auto"," - total estimated rental rate ",{"$f":"VLOOKUP(A9,Sheet1!A2:C5,2)","v":38}]
["Cost per gallon of gasoline"]
["Mileage reimbursement rate",null,0.67]
[{"$f":"A9","v":"Standard Auto"}," - miles per gallon of gasoline (MPG)",{"$f":"VLOOKUP(A9,Sheet1!A2:C5,3)","v":28}]
[]
[{"$f":"IF(OR(A12=Sheet1!A2,A12=Sheet1!A3),\"PROVIDE JUSTIFICATION FOR NEED OF 12/15 PASSENGER VAN\",IF(A12=Sheet1!A4,\"PROVIDE JUSTIFICATION FOR NEED FOR PICKUP TRUCK\",\"\"))","v":""}]
[]
["Calculated Results"]
[]
["Personal Vehicle Reimbursement Cost"]
["Mileage",null,{"$f":"C7*C11","v":0}]
[]
["Total",null,{"$f":"C19","v":0}]
[]
["Auto Rental Cost"]
["Rental",null,{"$f":"C9*C8","v":0}]
["Refueling",null,{"$f":"(C7/C12)*C10","v":0}]
[]
["Total",null,{"$f":"C24+C25","v":0}]
[]
[]
[]
["Instructions for Entering Trip Information (yellow fields only)"]
["Enter the roundtrip mileage. "]
["Enter the number of days the vehicle will be rented. "]
["Enter the cost per gallon of gasoline."]
["Enter airport parking amount to be claimed for personal vehicle."]
[null,null,null,null,"Personal Vehicle Reimbursement Cost:",null,null,null,{"$f":"C21","v":0}]
[]
[null,null,null,null,"Auto Rental Cost:",null,null,null,{"$f":"C27","v":0}]
[]
[null,"If the Auto Rental Cost is less than the Personal Vehicle Reimbursement Cost, then the Auto Rental Cost is the reimbursable amount.",null,null,null,null,null,null,null,null,null,"2024-01-04"]

{"sheet":"Sheet1","index":1,"n_rows":5,"n_cols":3,"rows_kept":5,"cut":false,"hidden":true,"merged":[]}
["Vehicle Class","Daily Rate","Miles per Gallon"]
["12 Passenger Van",125,16]
["15 Passenger Van",125,16]
["Pickup Truck",79,18]
["Standard Auto",38,28]

{"sheet":"Supporting Graph Data","index":2,"n_rows":205,"n_cols":5,"rows_kept":205,"cut":false,"hidden":true,"merged":[]}
[]
[]
[]
[null,null,"Miles","Reimburse","Rent"]
[null,null,0,{"$f":"C5*'Main Calculator'!$C$11","v":0},{"$f":"'Main Calculator'!$C$9*'Main Calculator'!$C$8+(C5/'Main Calculator'!$C$12*'Main Calculator'!$C$10)","v":0}]
[null,null,5,{"$f":"C6*'Main Calculator'!$C$11","v":3.35},{"$f":"'Main Calculator'!$C$9*'Main Calculator'!$C$8+(C6/'Main Calculator'!$C$12*'Main Calculator'!$C$10)","v":0}]
[null,null,10,{"$f":"C7*'Main Calculator'!$C$11","v":6.7},{"$f":"'Main Calculator'!$C$9*'Main Calculator'!$C$8+(C7/'Main Calculator'!$C$12*'Main Calculator'!$C$10)","v":0}]
[null,null,15,{"$f":"C8*'Main Calculator'!$C$11","v":10.050000000000001},{"$f":"'Main Calculator'!$C$9*'Main Calculator'!$C$8+(C8/'Main Calculator'!$C$12*'Main Calculator'!$C$10)","v":0}]
[null,null,20,{"$f":"C9*'Main Calculator'!$C$11","v":13.4},{"$f":"'Main Calculator'!$C$9*'Main Calculator'!$C$8+(C9/'Main Calculator'!$C$12*'Main Calculator'!$C$10)","v":0}]
[null,null,25,{"$f":"C10*'Main Calculator'!$C$11","v":16.75},{"$f":"'Main Calculator'!$C$9*'Main Calculator'!$C$8+(C10/'Main Calculator'!$C$12*'Main Calculator'!$C$10)","v":0}]
[null,null,30,{"$f":"C11*'Main Calculator'!$C$11","v":20.100000000000001},{"$f":"'Main Calculator'!$C$9*'Main Calculator'!$C$8+(C11/'Main Calculator'!$C$12*'Main Calculator'!$C$10)","v":0}]
[null,null,35,{"$f":"C12*'Main Calculator'!$C$11","v":23.450000000000003},{"$f":"'Main Calculator'!$C$9*'Main Calculator'!$C$8+(C12/'Main Calculator'!$C$12*'Main Calculator'!$C$10)","v":0}]
[null,null,40,{"$f":"C13*'Main Calculator'!$C$11","v":26.8},{"$f":"'Main Calculator'!$C$9*'Main Calculator'!$C$8+(C13/'Main Calculator'!$C$12*'Main Calculator'!$C$10)","v":0}]
[null,null,45,{"$f":"C14*'Main Calculator'!$C$11","v":30.150000000000002},{"$f":"'Main Calculator'!$C$9*'Main Calculator'!$C$8+(C14/'Main Calculator'!$C$12*'Main Calculator'!$C$10)","v":0}]
[null,null,50,{"$f":"C15*'Main Calculator'!$C$11","v":33.5},{"$f":"'Main Calculator'!$C$9*'Main Calculator'!$C$8+(C15/'Main Calculator'!$C$12*'Main Calculator'!$C$10)","v":0}]
[null,null,55,{"$f":"C16*'Main Calculator'!$C$11","v":36.85},{"$f":"'Main Calculator'!$C$9*'Main Calculator'!$C$8+(C16/'Main Calculator'!$C$12*'Main Calculator'!$C$10)","v":0}]
[null,null,60,{"$f":"C17*'Main Calculator'!$C$11","v":40.200000000000003},{"$f":"'Main Calculator'!$C$9*'Main Calculator'!$C$8+(C17/'Main Calculator'!$C$12*'Main Calculator'!$C$10)","v":0}]
[null,null,65,{"$f":"C18*'Main Calculator'!$C$11","v":43.550000000000004},{"$f":"'Main Calculator'!$C$9*'Main Calculator'!$C$8+(C18/'Main Calculator'!$C$12*'Main Calculator'!$C$10)","v":0}]
[null,null,70,{"$f":"C19*'Main Calculator'!$C$11","v":46.900000000000006},{"$f":"'Main Calculator'!$C$9*'Main Calculator'!$C$8+(C19/'Main Calculator'!$C$12*'Main Calculator'!$C$10)","v":0}]
[null,null,75,{"$f":"C20*'Main Calculator'!$C$11","v":50.25},{"$f":"'Main Calculator'!$C$9*'Main Calculator'!$C$8+(C20/'Main Calculator'!$C$12*'Main Calculator'!$C$10)","v":0}]
[null,null,80,{"$f":"C21*'Main Calculator'!$C$11","v":53.6},{"$f":"'Main Calculator'!$C$9*'Main Calculator'!$C$8+(C21/'Main Calculator'!$C$12*'Main Calculator'!$C$10)","v":0}]
[null,null,85,{"$f":"C22*'Main Calculator'!$C$11","v":56.95},{"$f":"'Main Calculator'!$C$9*'Main Calculator'!$C$8+(C22/'Main Calculator'!$C$12*'Main Calculator'!$C$10)","v":0}]
[null,null,90,{"$f":"C23*'Main Calculator'!$C$11","v":60.300000000000004},{"$f":"'Main Calculator'!$C$9*'Main Calculator'!$C$8+(C23/'Main Calculator'!$C$12*'Main Calculator'!$C$10)","v":0}]
[null,null,95,{"$f":"C24*'Main Calculator'!$C$11","v":63.650000000000006},{"$f":"'Main Calculator'!$C$9*'Main Calculator'!$C$8+(C24/'Main Calculator'!$C$12*'Main Calculator'!$C$10)","v":0}]
[null,null,100,{"$f":"C25*'Main Calculator'!$C$11","v":67},{"$f":"'Main Calculator'!$C$9*'Main Calculator'!$C$8+(C25/'Main Calculator'!$C$12*'Main Calculator'!$C$10)","v":0}]
[null,null,105,{"$f":"C26*'Main Calculator'!$C$11","v":70.350000000000009},{"$f":"'Main Calculator'!$C$9*'Main Calculator'!$C$8+(C26/'Main Calculator'!$C$12*'Main Calculator'!$C$10)","v":0}]
[null,null,110,{"$f":"C27*'Main Calculator'!$C$11","v":73.7},{"$f":"'Main Calculator'!$C$9*'Main Calculator'!$C$8+(C27/'Main Calculator'!$C$12*'Main Calculator'!$C$10)","v":0}]
[null,null,115,{"$f":"C28*'Main Calculator'!$C$11","v":77.050000000000011},{"$f":"'Main Calculator'!$C$9*'Main Calculator'!$C$8+(C28/'Main Calculator'!$C$12*'Main Calculator'!$C$10)","v":0}]
[null,null,120,{"$f":"C29*'Main Calculator'!$C$11","v":80.400000000000006},{"$f":"'Main Calculator'!$C$9*'Main Calculator'!$C$8+(C29/'Main Calculator'!$C$12*'Main Calculator'!$C$10)","v":0}]
[null,null,125,{"$f":"C30*'Main Calculator'!$C$11","v":83.75},{"$f":"'Main Calculator'!$C$9*'Main Calculator'!$C$8+(C30/'Main Calculator'!$C$12*'Main Calculator'!$C$10)","v":0}]
[null,null,130,{"$f":"C31*'Main Calculator'!$C$11","v":87.100000000000009},{"$f":"'Main Calculator'!$C$9*'Main Calculator'!$C$8+(C31/'Main Calculator'!$C$12*'Main Calculator'!$C$10)","v":0}]
[null,null,135,{"$f":"C32*'Main Calculator'!$C$11","v":90.45},{"$f":"'Main Calculator'!$C$9*'Main Calculator'!$C$8+(C32/'Main Calculator'!$C$12*'Main Calculator'!$C$10)","v":0}]
[null,null,140,{"$f":"C33*'Main Calculator'!$C$11","v":93.800000000000011},{"$f":"'Main Calculator'!$C$9*'Main Calculator'!$C$8+(C33/'Main Calculator'!$C$12*'Main Calculator'!$C$10)","v":0}]
[null,null,145,{"$f":"C34*'Main Calculator'!$C$11","v":97.15},{"$f":"'Main Calculator'!$C$9*'Main Calculator'!$C$8+(C34/'Main Calculator'!$C$12*'Main Calculator'!$C$10)","v":0}]
[null,null,150,{"$f":"C35*'Main Calculator'!$C$11","v":100.5},{"$f":"'Main Calculator'!$C$9*'Main Calculator'!$C$8+(C35/'Main Calculator'!$C$12*'Main Calculator'!$C$10)","v":0}]
[null,null,155,{"$f":"C36*'Main Calculator'!$C$11","v":103.85000000000001},{"$f":"'Main Calculator'!$C$9*'Main Calculator'!$C$8+(C36/'Main Calculator'!$C$12*'Main Calculator'!$C$10)","v":0}]
[null,null,160,{"$f":"C37*'Main Calculator'!$C$11","v":107.2},{"$f":"'Main Calculator'!$C$9*'Main Calculator'!$C$8+(C37/'Main Calculator'!$C$12*'Main Calculator'!$C$10)","v":0}]
[null,null,165,{"$f":"C38*'Main Calculator'!$C$11","v":110.55000000000001},{"$f":"'Main Calculator'!$C$9*'Main Calculator'!$C$8+(C38/'Main Calculator'!$C$12*'Main Calculator'!$C$10)","v":0}]
[null,null,170,{"$f":"C39*'Main Calculator'!$C$11","v":113.9},{"$f":"'Main Calculator'!$C$9*'Main Calculator'!$C$8+(C39/'Main Calculator'!$C$12*'Main Calculator'!$C$10)","v":0}]
[null,null,175,{"$f":"C40*'Main Calculator'!$C$11","v":117.25},{"$f":"'Main Calculator'!$C$9*'Main Calculator'!$C$8+(C40/'Main Calculator'!$C$12*'Main Calculator'!$C$10)","v":0}]
[null,null,180,{"$f":"C41*'Main Calculator'!$C$11","v":120.60000000000001},{"$f":"'Main Calculator'!$C$9*'Main Calculator'!$C$8+(C41/'Main Calculator'!$C$12*'Main Calculator'!$C$10)","v":0}]
[null,null,185,{"$f":"C42*'Main Calculator'!$C$11","v":123.95},{"$f":"'Main Calculator'!$C$9*'Main Calculator'!$C$8+(C42/'Main Calculator'!$C$12*'Main Calculator'!$C$10)","v":0}]
[null,null,190,{"$f":"C43*'Main Calculator'!$C$11","v":127.30000000000001},{"$f":"'Main Calculator'!$C$9*'Main Calculator'!$C$8+(C43/'Main Calculator'!$C$12*'Main Calculator'!$C$10)","v":0}]
[null,null,195,{"$f":"C44*'Main Calculator'!$C$11","v":130.65},{"$f":"'Main Calculator'!$C$9*'Main Calculator'!$C$8+(C44/'Main Calculator'!$C$12*'Main Calculator'!$C$10)","v":0}]
[null,null,200,{"$f":"C45*'Main Calculator'!$C$11","v":134},{"$f":"'Main Calculator'!$C$9*'Main Calculator'!$C$8+(C45/'Main Calculator'!$C$12*'Main Calculator'!$C$10)","v":0}]
[null,null,205,{"$f":"C46*'Main Calculator'!$C$11","v":137.35},{"$f":"'Main Calculator'!$C$9*'Main Calculator'!$C$8+(C46/'Main Calculator'!$C$12*'Main Calculator'!$C$10)","v":0}]
[null,null,210,{"$f":"C47*'Main Calculator'!$C$11","v":140.70000000000002},{"$f":"'Main Calculator'!$C$9*'Main Calculator'!$C$8+(C47/'Main Calculator'!$C$12*'Main Calculator'!$C$10)","v":0}]
[null,null,215,{"$f":"C48*'Main Calculator'!$C$11","v":144.05000000000001},{"$f":"'Main Calculator'!$C$9*'Main Calculator'!$C$8+(C48/'Main Calculator'!$C$12*'Main Calculator'!$C$10)","v":0}]
[null,null,220,{"$f":"C49*'Main Calculator'!$C$11","v":147.4},{"$f":"'Main Calculator'!$C$9*'Main Calculator'!$C$8+(C49/'Main Calculator'!$C$12*'Main Calculator'!$C$10)","v":0}]
[null,null,225,{"$f":"C50*'Main Calculator'!$C$11","v":150.75},{"$f":"'Main Calculator'!$C$9*'Main Calculator'!$C$8+(C50/'Main Calculator'!$C$12*'Main Calculator'!$C$10)","v":0}]
[null,null,230,{"$f":"C51*'Main Calculator'!$C$11","v":154.10000000000002},{"$f":"'Main Calculator'!$C$9*'Main Calculator'!$C$8+(C51/'Main Calculator'!$C$12*'Main Calculator'!$C$10)","v":0}]
[null,null,235,{"$f":"C52*'Main Calculator'!$C$11","v":157.45000000000002},{"$f":"'Main Calculator'!$C$9*'Main Calculator'!$C$8+(C52/'Main Calculator'!$C$12*'Main Calculator'!$C$10)","v":0}]
[null,null,240,{"$f":"C53*'Main Calculator'!$C$11","v":160.80000000000001},{"$f":"'Main Calculator'!$C$9*'Main Calculator'!$C$8+(C53/'Main Calculator'!$C$12*'Main Calculator'!$C$10)","v":0}]
[null,null,245,{"$f":"C54*'Main Calculator'!$C$11","v":164.15},{"$f":"'Main Calculator'!$C$9*'Main Calculator'!$C$8+(C54/'Main Calculator'!$C$12*'Main Calculator'!$C$10)","v":0}]
[null,null,250,{"$f":"C55*'Main Calculator'!$C$11","v":167.5},{"$f":"'Main Calculator'!$C$9*'Main Calculator'!$C$8+(C55/'Main Calculator'!$C$12*'Main Calculator'!$C$10)","v":0}]
[null,null,255,{"$f":"C56*'Main Calculator'!$C$11","v":170.85000000000002},{"$f":"'Main Calculator'!$C$9*'Main Calculator'!$C$8+(C56/'Main Calculator'!$C$12*'Main Calculator'!$C$10)","v":0}]
[null,null,260,{"$f":"C57*'Main Calculator'!$C$11","v":174.20000000000002},{"$f":"'Main Calculator'!$C$9*'Main Calculator'!$C$8+(C57/'Main Calculator'!$C$12*'Main Calculator'!$C$10)","v":0}]
[null,null,265,{"$f":"C58*'Main Calculator'!$C$11","v":177.55},{"$f":"'Main Calculator'!$C$9*'Main Calculator'!$C$8+(C58/'Main Calculator'!$C$12*'Main Calculator'!$C$10)","v":0}]
[null,null,270,{"$f":"C59*'Main Calculator'!$C$11","v":180.9},{"$f":"'Main Calculator'!$C$9*'Main Calculator'!$C$8+(C59/'Main Calculator'!$C$12*'Main Calculator'!$C$10)","v":0}]
[null,null,275,{"$f":"C60*'Main Calculator'!$C$11","v":184.25},{"$f":"'Main Calculator'!$C$9*'Main Calculator'!$C$8+(C60/'Main Calculator'!$C$12*'Main Calculator'!$C$10)","v":0}]
[null,null,280,{"$f":"C61*'Main Calculator'!$C$11","v":187.60000000000002},{"$f":"'Main Calculator'!$C$9*'Main Calculator'!$C$8+(C61/'Main Calculator'!$C$12*'Main Calculator'!$C$10)","v":0}]
[null,null,285,{"$f":"C62*'Main Calculator'!$C$11","v":190.95000000000002},{"$f":"'Main Calculator'!$C$9*'Main Calculator'!$C$8+(C62/'Main Calculator'!$C$12*'Main Calculator'!$C$10)","v":0}]
[null,null,290,{"$f":"C63*'Main Calculator'!$C$11","v":194.3},{"$f":"'Main Calculator'!$C$9*'Main Calculator'!$C$8+(C63/'Main Calculator'!$C$12*'Main Calculator'!$C$10)","v":0}]
[null,null,295,{"$f":"C64*'Main Calculator'!$C$11","v":197.65},{"$f":"'Main Calculator'!$C$9*'Main Calculator'!$C$8+(C64/'Main Calculator'!$C$12*'Main Calculator'!$C$10)","v":0}]
[null,null,300,{"$f":"C65*'Main Calculator'!$C$11","v":201},{"$f":"'Main Calculator'!$C$9*'Main Calculator'!$C$8+(C65/'Main Calculator'!$C$12*'Main Calculator'!$C$10)","v":0}]
[null,null,305,{"$f":"C66*'Main Calculator'!$C$11","v":204.35000000000002},{"$f":"'Main Calculator'!$C$9*'Main Calculator'!$C$8+(C66/'Main Calculator'!$C$12*'Main Calculator'!$C$10)","v":0}]
[null,null,310,{"$f":"C67*'Main Calculator'!$C$11","v":207.70000000000002},{"$f":"'Main Calculator'!$C$9*'Main Calculator'!$C$8+(C67/'Main Calculator'!$C$12*'Main Calculator'!$C$10)","v":0}]
[null,null,315,{"$f":"C68*'Main Calculator'!$C$11","v":211.05},{"$f":"'Main Calculator'!$C$9*'Main Calculator'!$C$8+(C68/'Main Calculator'!$C$12*'Main Calculator'!$C$10)","v":0}]
[null,null,320,{"$f":"C69*'Main Calculator'!$C$11","v":214.4},{"$f":"'Main Calculator'!$C$9*'Main Calculator'!$C$8+(C69/'Main Calculator'!$C$12*'Main Calculator'!$C$10)","v":0}]
[null,null,325,{"$f":"C70*'Main Calculator'!$C$11","v":217.75},{"$f":"'Main Calculator'!$C$9*'Main Calculator'!$C$8+(C70/'Main Calculator'!$C$12*'Main Calculator'!$C$10)","v":0}]
[null,null,330,{"$f":"C71*'Main Calculator'!$C$11","v":221.10000000000002},{"$f":"'Main Calculator'!$C$9*'Main Calculator'!$C$8+(C71/'Main Calculator'!$C$12*'Main Calculator'!$C$10)","v":0}]
[null,null,335,{"$f":"C72*'Main Calculator'!$C$11","v":224.45000000000002},{"$f":"'Main Calculator'!$C$9*'Main Calculator'!$C$8+(C72/'Main Calculator'!$C$12*'Main Calculator'!$C$10)","v":0}]
[null,null,340,{"$f":"C73*'Main Calculator'!$C$11","v":227.8},{"$f":"'Main Calculator'!$C$9*'Main Calculator'!$C$8+(C73/'Main Calculator'!$C$12*'Main Calculator'!$C$10)","v":0}]
[null,null,345,{"$f":"C74*'Main Calculator'!$C$11","v":231.15},{"$f":"'Main Calculator'!$C$9*'Main Calculator'!$C$8+(C74/'Main Calculator'!$C$12*'Main Calculator'!$C$10)","v":0}]
[null,null,350,{"$f":"C75*'Main Calculator'!$C$11","v":234.5},{"$f":"'Main Calculator'!$C$9*'Main Calculator'!$C$8+(C75/'Main Calculator'!$C$12*'Main Calculator'!$C$10)","v":0}]
[null,null,355,{"$f":"C76*'Main Calculator'!$C$11","v":237.85000000000002},{"$f":"'Main Calculator'!$C$9*'Main Calculator'!$C$8+(C76/'Main Calculator'!$C$12*'Main Calculator'!$C$10)","v":0}]
[null,null,360,{"$f":"C77*'Main Calculator'!$C$11","v":241.20000000000002},{"$f":"'Main Calculator'!$C$9*'Main Calculator'!$C$8+(C77/'Main Calculator'!$C$12*'Main Calculator'!$C$10)","v":0}]
[null,null,365,{"$f":"C78*'Main Calculator'!$C$11","v":244.55},{"$f":"'Main Calculator'!$C$9*'Main Calculator'!$C$8+(C78/'Main Calculator'!$C$12*'Main Calculator'!$C$10)","v":0}]
[null,null,370,{"$f":"C79*'Main Calculator'!$C$11","v":247.9},{"$f":"'Main Calculator'!$C$9*'Main Calculator'!$C$8+(C79/'Main Calculator'!$C$12*'Main Calculator'!$C$10)","v":0}]
[null,null,375,{"$f":"C80*'Main Calculator'!$C$11","v":251.25000000000003},{"$f":"'Main Calculator'!$C$9*'Main Calculator'!$C$8+(C80/'Main Calculator'!$C$12*'Main Calculator'!$C$10)","v":0}]
[null,null,380,{"$f":"C81*'Main Calculator'!$C$11","v":254.60000000000002},{"$f":"'Main Calculator'!$C$9*'Main Calculator'!$C$8+(C81/'Main Calculator'!$C$12*'Main Calculator'!$C$10)","v":0}]
[null,null,385,{"$f":"C82*'Main Calculator'!$C$11","v":257.95},{"$f":"'Main Calculator'!$C$9*'Main Calculator'!$C$8+(C82/'Main Calculator'!$C$12*'Main Calculator'!$C$10)","v":0}]
[null,null,390,{"$f":"C83*'Main Calculator'!$C$11","v":261.3},{"$f":"'Main Calculator'!$C$9*'Main Calculator'!$C$8+(C83/'Main Calculator'!$C$12*'Main Calculator'!$C$10)","v":0}]
[null,null,395,{"$f":"C84*'Main Calculator'!$C$11","v":264.65000000000003},{"$f":"'Main Calculator'!$C$9*'Main Calculator'!$C$8+(C84/'Main Calculator'!$C$12*'Main Calculator'!$C$10)","v":0}]
[null,null,400,{"$f":"C85*'Main Calculator'!$C$11","v":268},{"$f":"'Main Calculator'!$C$9*'Main Calculator'!$C$8+(C85/'Main Calculator'!$C$12*'Main Calculator'!$C$10)","v":0}]
[null,null,405,{"$f":"C86*'Main Calculator'!$C$11","v":271.35000000000002},{"$f":"'Main Calculator'!$C$9*'Main Calculator'!$C$8+(C86/'Main Calculator'!$C$12*'Main Calculator'!$C$10)","v":0}]
[null,null,410,{"$f":"C87*'Main Calculator'!$C$11","v":274.7},{"$f":"'Main Calculator'!$C$9*'Main Calculator'!$C$8+(C87/'Main Calculator'!$C$12*'Main Calculator'!$C$10)","v":0}]
[null,null,415,{"$f":"C88*'Main Calculator'!$C$11","v":278.05},{"$f":"'Main Calculator'!$C$9*'Main Calculator'!$C$8+(C88/'Main Calculator'!$C$12*'Main Calculator'!$C$10)","v":0}]
[null,null,420,{"$f":"C89*'Main Calculator'!$C$11","v":281.40000000000003},{"$f":"'Main Calculator'!$C$9*'Main Calculator'!$C$8+(C89/'Main Calculator'!$C$12*'Main Calculator'!$C$10)","v":0}]
[null,null,425,{"$f":"C90*'Main Calculator'!$C$11","v":284.75},{"$f":"'Main Calculator'!$C$9*'Main Calculator'!$C$8+(C90/'Main Calculator'!$C$12*'Main Calculator'!$C$10)","v":0}]
[null,null,430,{"$f":"C91*'Main Calculator'!$C$11","v":288.10000000000002},{"$f":"'Main Calculator'!$C$9*'Main Calculator'!$C$8+(C91/'Main Calculator'!$C$12*'Main Calculator'!$C$10)","v":0}]
[null,null,435,{"$f":"C92*'Main Calculator'!$C$11","v":291.45000000000005},{"$f":"'Main Calculator'!$C$9*'Main Calculator'!$C$8+(C92/'Main Calculator'!$C$12*'Main Calculator'!$C$10)","v":0}]
[null,null,440,{"$f":"C93*'Main Calculator'!$C$11","v":294.8},{"$f":"'Main Calculator'!$C$9*'Main Calculator'!$C$8+(C93/'Main Calculator'!$C$12*'Main Calculator'!$C$10)","v":0}]
[null,null,445,{"$f":"C94*'Main Calculator'!$C$11","v":298.15000000000003},{"$f":"'Main Calculator'!$C$9*'Main Calculator'!$C$8+(C94/'Main Calculator'!$C$12*'Main Calculator'!$C$10)","v":0}]
[null,null,450,{"$f":"C95*'Main Calculator'!$C$11","v":301.5},{"$f":"'Main Calculator'!$C$9*'Main Calculator'!$C$8+(C95/'Main Calculator'!$C$12*'Main Calculator'!$C$10)","v":0}]
[null,null,455,{"$f":"C96*'Main Calculator'!$C$11","v":304.85000000000002},{"$f":"'Main Calculator'!$C$9*'Main Calculator'!$C$8+(C96/'Main Calculator'!$C$12*'Main Calculator'!$C$10)","v":0}]
[null,null,460,{"$f":"C97*'Main Calculator'!$C$11","v":308.20000000000005},{"$f":"'Main Calculator'!$C$9*'Main Calculator'!$C$8+(C97/'Main Calculator'!$C$12*'Main Calculator'!$C$10)","v":0}]
[null,null,465,{"$f":"C98*'Main Calculator'!$C$11","v":311.55},{"$f":"'Main Calculator'!$C$9*'Main Calculator'!$C$8+(C98/'Main Calculator'!$C$12*'Main Calculator'!$C$10)","v":0}]
[null,null,470,{"$f":"C99*'Main Calculator'!$C$11","v":314.90000000000003},{"$f":"'Main Calculator'!$C$9*'Main Calculator'!$C$8+(C99/'Main Calculator'!$C$12*'Main Calculator'!$C$10)","v":0}]
[null,null,475,{"$f":"C100*'Main Calculator'!$C$11","v":318.25},{"$f":"'Main Calculator'!$C$9*'Main Calculator'!$C$8+(C100/'Main Calculator'!$C$12*'Main Calculator'!$C$10)","v":0}]
[null,null,480,{"$f":"C101*'Main Calculator'!$C$11","v":321.60000000000002},{"$f":"'Main Calculator'!$C$9*'Main Calculator'!$C$8+(C101/'Main Calculator'!$C$12*'Main Calculator'!$C$10)","v":0}]
[null,null,485,{"$f":"C102*'Main Calculator'!$C$11","v":324.95000000000005},{"$f":"'Main Calculator'!$C$9*'Main Calculator'!$C$8+(C102/'Main Calculator'!$C$12*'Main Calculator'!$C$10)","v":0}]
[null,null,490,{"$f":"C103*'Main Calculator'!$C$11","v":328.3},{"$f":"'Main Calculator'!$C$9*'Main Calculator'!$C$8+(C103/'Main Calculator'!$C$12*'Main Calculator'!$C$10)","v":0}]
[null,null,495,{"$f":"C104*'Main Calculator'!$C$11","v":331.65000000000003},{"$f":"'Main Calculator'!$C$9*'Main Calculator'!$C$8+(C104/'Main Calculator'!$C$12*'Main Calculator'!$C$10)","v":0}]
[null,null,500,{"$f":"C105*'Main Calculator'!$C$11","v":335},{"$f":"'Main Calculator'!$C$9*'Main Calculator'!$C$8+(C105/'Main Calculator'!$C$12*'Main Calculator'!$C$10)","v":0}]
[null,null,505,{"$f":"C106*'Main Calculator'!$C$11","v":338.35},{"$f":"'Main Calculator'!$C$9*'Main Calculator'!$C$8+(C106/'Main Calculator'!$C$12*'Main Calculator'!$C$10)","v":0}]
[null,null,510,{"$f":"C107*'Main Calculator'!$C$11","v":341.70000000000005},{"$f":"'Main Calculator'!$C$9*'Main Calculator'!$C$8+(C107/'Main Calculator'!$C$12*'Main Calculator'!$C$10)","v":0}]
[null,null,515,{"$f":"C108*'Main Calculator'!$C$11","v":345.05},{"$f":"'Main Calculator'!$C$9*'Main Calculator'!$C$8+(C108/'Main Calculator'!$C$12*'Main Calculator'!$C$10)","v":0}]
[null,null,520,{"$f":"C109*'Main Calculator'!$C$11","v":348.40000000000003},{"$f":"'Main Calculator'!$C$9*'Main Calculator'!$C$8+(C109/'Main Calculator'!$C$12*'Main Calculator'!$C$10)","v":0}]
[null,null,525,{"$f":"C110*'Main Calculator'!$C$11","v":351.75},{"$f":"'Main Calculator'!$C$9*'Main Calculator'!$C$8+(C110/'Main Calculator'!$C$12*'Main Calculator'!$C$10)","v":0}]
[null,null,530,{"$f":"C111*'Main Calculator'!$C$11","v":355.1},{"$f":"'Main Calculator'!$C$9*'Main Calculator'!$C$8+(C111/'Main Calculator'!$C$12*'Main Calculator'!$C$10)","v":0}]
[null,null,535,{"$f":"C112*'Main Calculator'!$C$11","v":358.45000000000005},{"$f":"'Main Calculator'!$C$9*'Main Calculator'!$C$8+(C112/'Main Calculator'!$C$12*'Main Calculator'!$C$10)","v":0}]
[null,null,540,{"$f":"C113*'Main Calculator'!$C$11","v":361.8},{"$f":"'Main Calculator'!$C$9*'Main Calculator'!$C$8+(C113/'Main Calculator'!$C$12*'Main Calculator'!$C$10)","v":0}]
[null,null,545,{"$f":"C114*'Main Calculator'!$C$11","v":365.15000000000003},{"$f":"'Main Calculator'!$C$9*'Main Calculator'!$C$8+(C114/'Main Calculator'!$C$12*'Main Calculator'!$C$10)","v":0}]
[null,null,550,{"$f":"C115*'Main Calculator'!$C$11","v":368.5},{"$f":"'Main Calculator'!$C$9*'Main Calculator'!$C$8+(C115/'Main Calculator'!$C$12*'Main Calculator'!$C$10)","v":0}]
[null,null,555,{"$f":"C116*'Main Calculator'!$C$11","v":371.85},{"$f":"'Main Calculator'!$C$9*'Main Calculator'!$C$8+(C116/'Main Calculator'!$C$12*'Main Calculator'!$C$10)","v":0}]
[null,null,560,{"$f":"C117*'Main Calculator'!$C$11","v":375.20000000000005},{"$f":"'Main Calculator'!$C$9*'Main Calculator'!$C$8+(C117/'Main Calculator'!$C$12*'Main Calculator'!$C$10)","v":0}]
[null,null,565,{"$f":"C118*'Main Calculator'!$C$11","v":378.55},{"$f":"'Main Calculator'!$C$9*'Main Calculator'!$C$8+(C118/'Main Calculator'!$C$12*'Main Calculator'!$C$10)","v":0}]
[null,null,570,{"$f":"C119*'Main Calculator'!$C$11","v":381.90000000000003},{"$f":"'Main Calculator'!$C$9*'Main Calculator'!$C$8+(C119/'Main Calculator'!$C$12*'Main Calculator'!$C$10)","v":0}]
[null,null,575,{"$f":"C120*'Main Calculator'!$C$11","v":385.25},{"$f":"'Main Calculator'!$C$9*'Main Calculator'!$C$8+(C120/'Main Calculator'!$C$12*'Main Calculator'!$C$10)","v":0}]
[null,null,580,{"$f":"C121*'Main Calculator'!$C$11","v":388.6},{"$f":"'Main Calculator'!$C$9*'Main Calculator'!$C$8+(C121/'Main Calculator'!$C$12*'Main Calculator'!$C$10)","v":0}]
[null,null,585,{"$f":"C122*'Main Calculator'!$C$11","v":391.95000000000005},{"$f":"'Main Calculator'!$C$9*'Main Calculator'!$C$8+(C122/'Main Calculator'!$C$12*'Main Calculator'!$C$10)","v":0}]
[null,null,590,{"$f":"C123*'Main Calculator'!$C$11","v":395.3},{"$f":"'Main Calculator'!$C$9*'Main Calculator'!$C$8+(C123/'Main Calculator'!$C$12*'Main Calculator'!$C$10)","v":0}]
[null,null,595,{"$f":"C124*'Main Calculator'!$C$11","v":398.65000000000003},{"$f":"'Main Calculator'!$C$9*'Main Calculator'!$C$8+(C124/'Main Calculator'!$C$12*'Main Calculator'!$C$10)","v":0}]
[null,null,600,{"$f":"C125*'Main Calculator'!$C$11","v":402},{"$f":"'Main Calculator'!$C$9*'Main Calculator'!$C$8+(C125/'Main Calculator'!$C$12*'Main Calculator'!$C$10)","v":0}]
[null,null,605,{"$f":"C126*'Main Calculator'!$C$11","v":405.35},{"$f":"'Main Calculator'!$C$9*'Main Calculator'!$C$8+(C126/'Main Calculator'!$C$12*'Main Calculator'!$C$10)","v":0}]
[null,null,610,{"$f":"C127*'Main Calculator'!$C$11","v":408.70000000000005},{"$f":"'Main Calculator'!$C$9*'Main Calculator'!$C$8+(C127/'Main Calculator'!$C$12*'Main Calculator'!$C$10)","v":0}]
[null,null,615,{"$f":"C128*'Main Calculator'!$C$11","v":412.05},{"$f":"'Main Calculator'!$C$9*'Main Calculator'!$C$8+(C128/'Main Calculator'!$C$12*'Main Calculator'!$C$10)","v":0}]
[null,null,620,{"$f":"C129*'Main Calculator'!$C$11","v":415.40000000000003},{"$f":"'Main Calculator'!$C$9*'Main Calculator'!$C$8+(C129/'Main Calculator'!$C$12*'Main Calculator'!$C$10)","v":0}]
[null,null,625,{"$f":"C130*'Main Calculator'!$C$11","v":418.75},{"$f":"'Main Calculator'!$C$9*'Main Calculator'!$C$8+(C130/'Main Calculator'!$C$12*'Main Calculator'!$C$10)","v":0}]
[null,null,630,{"$f":"C131*'Main Calculator'!$C$11","v":422.1},{"$f":"'Main Calculator'!$C$9*'Main Calculator'!$C$8+(C131/'Main Calculator'!$C$12*'Main Calculator'!$C$10)","v":0}]
[null,null,635,{"$f":"C132*'Main Calculator'!$C$11","v":425.45000000000005},{"$f":"'Main Calculator'!$C$9*'Main Calculator'!$C$8+(C132/'Main Calculator'!$C$12*'Main Calculator'!$C$10)","v":0}]
[null,null,640,{"$f":"C133*'Main Calculator'!$C$11","v":428.8},{"$f":"'Main Calculator'!$C$9*'Main Calculator'!$C$8+(C133/'Main Calculator'!$C$12*'Main Calculator'!$C$10)","v":0}]
[null,null,645,{"$f":"C134*'Main Calculator'!$C$11","v":432.15000000000003},{"$f":"'Main Calculator'!$C$9*'Main Calculator'!$C$8+(C134/'Main Calculator'!$C$12*'Main Calculator'!$C$10)","v":0}]
[null,null,650,{"$f":"C135*'Main Calculator'!$C$11","v":435.5},{"$f":"'Main Calculator'!$C$9*'Main Calculator'!$C$8+(C135/'Main Calculator'!$C$12*'Main Calculator'!$C$10)","v":0}]
[null,null,655,{"$f":"C136*'Main Calculator'!$C$11","v":438.85},{"$f":"'Main Calculator'!$C$9*'Main Calculator'!$C$8+(C136/'Main Calculator'!$C$12*'Main Calculator'!$C$10)","v":0}]
[null,null,660,{"$f":"C137*'Main Calculator'!$C$11","v":442.20000000000005},{"$f":"'Main Calculator'!$C$9*'Main Calculator'!$C$8+(C137/'Main Calculator'!$C$12*'Main Calculator'!$C$10)","v":0}]
[null,null,665,{"$f":"C138*'Main Calculator'!$C$11","v":445.55},{"$f":"'Main Calculator'!$C$9*'Main Calculator'!$C$8+(C138/'Main Calculator'!$C$12*'Main Calculator'!$C$10)","v":0}]
[null,null,670,{"$f":"C139*'Main Calculator'!$C$11","v":448.90000000000003},{"$f":"'Main Calculator'!$C$9*'Main Calculator'!$C$8+(C139/'Main Calculator'!$C$12*'Main Calculator'!$C$10)","v":0}]
[null,null,675,{"$f":"C140*'Main Calculator'!$C$11","v":452.25},{"$f":"'Main Calculator'!$C$9*'Main Calculator'!$C$8+(C140/'Main Calculator'!$C$12*'Main Calculator'!$C$10)","v":0}]
[null,null,680,{"$f":"C141*'Main Calculator'!$C$11","v":455.6},{"$f":"'Main Calculator'!$C$9*'Main Calculator'!$C$8+(C141/'Main Calculator'!$C$12*'Main Calculator'!$C$10)","v":0}]
[null,null,685,{"$f":"C142*'Main Calculator'!$C$11","v":458.95000000000005},{"$f":"'Main Calculator'!$C$9*'Main Calculator'!$C$8+(C142/'Main Calculator'!$C$12*'Main Calculator'!$C$10)","v":0}]
[null,null,690,{"$f":"C143*'Main Calculator'!$C$11","v":462.3},{"$f":"'Main Calculator'!$C$9*'Main Calculator'!$C$8+(C143/'Main Calculator'!$C$12*'Main Calculator'!$C$10)","v":0}]
[null,null,695,{"$f":"C144*'Main Calculator'!$C$11","v":465.65000000000003},{"$f":"'Main Calculator'!$C$9*'Main Calculator'!$C$8+(C144/'Main Calculator'!$C$12*'Main Calculator'!$C$10)","v":0}]
[null,null,700,{"$f":"C145*'Main Calculator'!$C$11","v":469},{"$f":"'Main Calculator'!$C$9*'Main Calculator'!$C$8+(C145/'Main Calculator'!$C$12*'Main Calculator'!$C$10)","v":0}]
[null,null,705,{"$f":"C146*'Main Calculator'!$C$11","v":472.35},{"$f":"'Main Calculator'!$C$9*'Main Calculator'!$C$8+(C146/'Main Calculator'!$C$12*'Main Calculator'!$C$10)","v":0}]
[null,null,710,{"$f":"C147*'Main Calculator'!$C$11","v":475.70000000000005},{"$f":"'Main Calculator'!$C$9*'Main Calculator'!$C$8+(C147/'Main Calculator'!$C$12*'Main Calculator'!$C$10)","v":0}]
[null,null,715,{"$f":"C148*'Main Calculator'!$C$11","v":479.05},{"$f":"'Main Calculator'!$C$9*'Main Calculator'!$C$8+(C148/'Main Calculator'!$C$12*'Main Calculator'!$C$10)","v":0}]
[null,null,720,{"$f":"C149*'Main Calculator'!$C$11","v":482.40000000000003},{"$f":"'Main Calculator'!$C$9*'Main Calculator'!$C$8+(C149/'Main Calculator'!$C$12*'Main Calculator'!$C$10)","v":0}]
[null,null,725,{"$f":"C150*'Main Calculator'!$C$11","v":485.75000000000006},{"$f":"'Main Calculator'!$C$9*'Main Calculator'!$C$8+(C150/'Main Calculator'!$C$12*'Main Calculator'!$C$10)","v":0}]
[null,null,730,{"$f":"C151*'Main Calculator'!$C$11","v":489.1},{"$f":"'Main Calculator'!$C$9*'Main Calculator'!$C$8+(C151/'Main Calculator'!$C$12*'Main Calculator'!$C$10)","v":0}]
[null,null,735,{"$f":"C152*'Main Calculator'!$C$11","v":492.45000000000005},{"$f":"'Main Calculator'!$C$9*'Main Calculator'!$C$8+(C152/'Main Calculator'!$C$12*'Main Calculator'!$C$10)","v":0}]
[null,null,740,{"$f":"C153*'Main Calculator'!$C$11","v":495.8},{"$f":"'Main Calculator'!$C$9*'Main Calculator'!$C$8+(C153/'Main Calculator'!$C$12*'Main Calculator'!$C$10)","v":0}]
[null,null,745,{"$f":"C154*'Main Calculator'!$C$11","v":499.15000000000003},{"$f":"'Main Calculator'!$C$9*'Main Calculator'!$C$8+(C154/'Main Calculator'!$C$12*'Main Calculator'!$C$10)","v":0}]
[null,null,750,{"$f":"C155*'Main Calculator'!$C$11","v":502.50000000000006},{"$f":"'Main Calculator'!$C$9*'Main Calculator'!$C$8+(C155/'Main Calculator'!$C$12*'Main Calculator'!$C$10)","v":0}]
[null,null,755,{"$f":"C156*'Main Calculator'!$C$11","v":505.85},{"$f":"'Main Calculator'!$C$9*'Main Calculator'!$C$8+(C156/'Main Calculator'!$C$12*'Main Calculator'!$C$10)","v":0}]
[null,null,760,{"$f":"C157*'Main Calculator'!$C$11","v":509.20000000000005},{"$f":"'Main Calculator'!$C$9*'Main Calculator'!$C$8+(C157/'Main Calculator'!$C$12*'Main Calculator'!$C$10)","v":0}]
[null,null,765,{"$f":"C158*'Main Calculator'!$C$11","v":512.55000000000007},{"$f":"'Main Calculator'!$C$9*'Main Calculator'!$C$8+(C158/'Main Calculator'!$C$12*'Main Calculator'!$C$10)","v":0}]
[null,null,770,{"$f":"C159*'Main Calculator'!$C$11","v":515.9},{"$f":"'Main Calculator'!$C$9*'Main Calculator'!$C$8+(C159/'Main Calculator'!$C$12*'Main Calculator'!$C$10)","v":0}]
[null,null,775,{"$f":"C160*'Main Calculator'!$C$11","v":519.25},{"$f":"'Main Calculator'!$C$9*'Main Calculator'!$C$8+(C160/'Main Calculator'!$C$12*'Main Calculator'!$C$10)","v":0}]
[null,null,780,{"$f":"C161*'Main Calculator'!$C$11","v":522.6},{"$f":"'Main Calculator'!$C$9*'Main Calculator'!$C$8+(C161/'Main Calculator'!$C$12*'Main Calculator'!$C$10)","v":0}]
[null,null,785,{"$f":"C162*'Main Calculator'!$C$11","v":525.95000000000005},{"$f":"'Main Calculator'!$C$9*'Main Calculator'!$C$8+(C162/'Main Calculator'!$C$12*'Main Calculator'!$C$10)","v":0}]
[null,null,790,{"$f":"C163*'Main Calculator'!$C$11","v":529.30000000000007},{"$f":"'Main Calculator'!$C$9*'Main Calculator'!$C$8+(C163/'Main Calculator'!$C$12*'Main Calculator'!$C$10)","v":0}]
[null,null,795,{"$f":"C164*'Main Calculator'!$C$11","v":532.65},{"$f":"'Main Calculator'!$C$9*'Main Calculator'!$C$8+(C164/'Main Calculator'!$C$12*'Main Calculator'!$C$10)","v":0}]
[null,null,800,{"$f":"C165*'Main Calculator'!$C$11","v":536},{"$f":"'Main Calculator'!$C$9*'Main Calculator'!$C$8+(C165/'Main Calculator'!$C$12*'Main Calculator'!$C$10)","v":0}]
[null,null,805,{"$f":"C166*'Main Calculator'!$C$11","v":539.35},{"$f":"'Main Calculator'!$C$9*'Main Calculator'!$C$8+(C166/'Main Calculator'!$C$12*'Main Calculator'!$C$10)","v":0}]
[null,null,810,{"$f":"C167*'Main Calculator'!$C$11","v":542.70000000000005},{"$f":"'Main Calculator'!$C$9*'Main Calculator'!$C$8+(C167/'Main Calculator'!$C$12*'Main Calculator'!$C$10)","v":0}]
[null,null,815,{"$f":"C168*'Main Calculator'!$C$11","v":546.05000000000007},{"$f":"'Main Calculator'!$C$9*'Main Calculator'!$C$8+(C168/'Main Calculator'!$C$12*'Main Calculator'!$C$10)","v":0}]
[null,null,820,{"$f":"C169*'Main Calculator'!$C$11","v":549.4},{"$f":"'Main Calculator'!$C$9*'Main Calculator'!$C$8+(C169/'Main Calculator'!$C$12*'Main Calculator'!$C$10)","v":0}]
[null,null,825,{"$f":"C170*'Main Calculator'!$C$11","v":552.75},{"$f":"'Main Calculator'!$C$9*'Main Calculator'!$C$8+(C170/'Main Calculator'!$C$12*'Main Calculator'!$C$10)","v":0}]
[null,null,830,{"$f":"C171*'Main Calculator'!$C$11","v":556.1},{"$f":"'Main Calculator'!$C$9*'Main Calculator'!$C$8+(C171/'Main Calculator'!$C$12*'Main Calculator'!$C$10)","v":0}]
[null,null,835,{"$f":"C172*'Main Calculator'!$C$11","v":559.45000000000005},{"$f":"'Main Calculator'!$C$9*'Main Calculator'!$C$8+(C172/'Main Calculator'!$C$12*'Main Calculator'!$C$10)","v":0}]
[null,null,840,{"$f":"C173*'Main Calculator'!$C$11","v":562.80000000000007},{"$f":"'Main Calculator'!$C$9*'Main Calculator'!$C$8+(C173/'Main Calculator'!$C$12*'Main Calculator'!$C$10)","v":0}]
[null,null,845,{"$f":"C174*'Main Calculator'!$C$11","v":566.15},{"$f":"'Main Calculator'!$C$9*'Main Calculator'!$C$8+(C174/'Main Calculator'!$C$12*'Main Calculator'!$C$10)","v":0}]
[null,null,850,{"$f":"C175*'Main Calculator'!$C$11","v":569.5},{"$f":"'Main Calculator'!$C$9*'Main Calculator'!$C$8+(C175/'Main Calculator'!$C$12*'Main Calculator'!$C$10)","v":0}]
[null,null,855,{"$f":"C176*'Main Calculator'!$C$11","v":572.85},{"$f":"'Main Calculator'!$C$9*'Main Calculator'!$C$8+(C176/'Main Calculator'!$C$12*'Main Calculator'!$C$10)","v":0}]
[null,null,860,{"$f":"C177*'Main Calculator'!$C$11","v":576.20000000000005},{"$f":"'Main Calculator'!$C$9*'Main Calculator'!$C$8+(C177/'Main Calculator'!$C$12*'Main Calculator'!$C$10)","v":0}]
[null,null,865,{"$f":"C178*'Main Calculator'!$C$11","v":579.55000000000007},{"$f":"'Main Calculator'!$C$9*'Main Calculator'!$C$8+(C178/'Main Calculator'!$C$12*'Main Calculator'!$C$10)","v":0}]
[null,null,870,{"$f":"C179*'Main Calculator'!$C$11","v":582.90000000000009},{"$f":"'Main Calculator'!$C$9*'Main Calculator'!$C$8+(C179/'Main Calculator'!$C$12*'Main Calculator'!$C$10)","v":0}]
[null,null,875,{"$f":"C180*'Main Calculator'!$C$11","v":586.25},{"$f":"'Main Calculator'!$C$9*'Main Calculator'!$C$8+(C180/'Main Calculator'!$C$12*'Main Calculator'!$C$10)","v":0}]
[null,null,880,{"$f":"C181*'Main Calculator'!$C$11","v":589.6},{"$f":"'Main Calculator'!$C$9*'Main Calculator'!$C$8+(C181/'Main Calculator'!$C$12*'Main Calculator'!$C$10)","v":0}]
[null,null,885,{"$f":"C182*'Main Calculator'!$C$11","v":592.95000000000005},{"$f":"'Main Calculator'!$C$9*'Main Calculator'!$C$8+(C182/'Main Calculator'!$C$12*'Main Calculator'!$C$10)","v":0}]
[null,null,890,{"$f":"C183*'Main Calculator'!$C$11","v":596.30000000000007},{"$f":"'Main Calculator'!$C$9*'Main Calculator'!$C$8+(C183/'Main Calculator'!$C$12*'Main Calculator'!$C$10)","v":0}]
[null,null,895,{"$f":"C184*'Main Calculator'!$C$11","v":599.65000000000009},{"$f":"'Main Calculator'!$C$9*'Main Calculator'!$C$8+(C184/'Main Calculator'!$C$12*'Main Calculator'!$C$10)","v":0}]
[null,null,900,{"$f":"C185*'Main Calculator'!$C$11","v":603},{"$f":"'Main Calculator'!$C$9*'Main Calculator'!$C$8+(C185/'Main Calculator'!$C$12*'Main Calculator'!$C$10)","v":0}]
[null,null,905,{"$f":"C186*'Main Calculator'!$C$11","v":606.35},{"$f":"'Main Calculator'!$C$9*'Main Calculator'!$C$8+(C186/'Main Calculator'!$C$12*'Main Calculator'!$C$10)","v":0}]
[null,null,910,{"$f":"C187*'Main Calculator'!$C$11","v":609.70000000000005},{"$f":"'Main Calculator'!$C$9*'Main Calculator'!$C$8+(C187/'Main Calculator'!$C$12*'Main Calculator'!$C$10)","v":0}]
[null,null,915,{"$f":"C188*'Main Calculator'!$C$11","v":613.05000000000007},{"$f":"'Main Calculator'!$C$9*'Main Calculator'!$C$8+(C188/'Main Calculator'!$C$12*'Main Calculator'!$C$10)","v":0}]
[null,null,920,{"$f":"C189*'Main Calculator'!$C$11","v":616.40000000000009},{"$f":"'Main Calculator'!$C$9*'Main Calculator'!$C$8+(C189/'Main Calculator'!$C$12*'Main Calculator'!$C$10)","v":0}]
[null,null,925,{"$f":"C190*'Main Calculator'!$C$11","v":619.75},{"$f":"'Main Calculator'!$C$9*'Main Calculator'!$C$8+(C190/'Main Calculator'!$C$12*'Main Calculator'!$C$10)","v":0}]
[null,null,930,{"$f":"C191*'Main Calculator'!$C$11","v":623.1},{"$f":"'Main Calculator'!$C$9*'Main Calculator'!$C$8+(C191/'Main Calculator'!$C$12*'Main Calculator'!$C$10)","v":0}]
[null,null,935,{"$f":"C192*'Main Calculator'!$C$11","v":626.45000000000005},{"$f":"'Main Calculator'!$C$9*'Main Calculator'!$C$8+(C192/'Main Calculator'!$C$12*'Main Calculator'!$C$10)","v":0}]
[null,null,940,{"$f":"C193*'Main Calculator'!$C$11","v":629.80000000000007},{"$f":"'Main Calculator'!$C$9*'Main Calculator'!$C$8+(C193/'Main Calculator'!$C$12*'Main Calculator'!$C$10)","v":0}]
[null,null,945,{"$f":"C194*'Main Calculator'!$C$11","v":633.15000000000009},{"$f":"'Main Calculator'!$C$9*'Main Calculator'!$C$8+(C194/'Main Calculator'!$C$12*'Main Calculator'!$C$10)","v":0}]
[null,null,950,{"$f":"C195*'Main Calculator'!$C$11","v":636.5},{"$f":"'Main Calculator'!$C$9*'Main Calculator'!$C$8+(C195/'Main Calculator'!$C$12*'Main Calculator'!$C$10)","v":0}]
[null,null,955,{"$f":"C196*'Main Calculator'!$C$11","v":639.85},{"$f":"'Main Calculator'!$C$9*'Main Calculator'!$C$8+(C196/'Main Calculator'!$C$12*'Main Calculator'!$C$10)","v":0}]
[null,null,960,{"$f":"C197*'Main Calculator'!$C$11","v":643.20000000000005},{"$f":"'Main Calculator'!$C$9*'Main Calculator'!$C$8+(C197/'Main Calculator'!$C$12*'Main Calculator'!$C$10)","v":0}]
[null,null,965,{"$f":"C198*'Main Calculator'!$C$11","v":646.55000000000007},{"$f":"'Main Calculator'!$C$9*'Main Calculator'!$C$8+(C198/'Main Calculator'!$C$12*'Main Calculator'!$C$10)","v":0}]
[null,null,970,{"$f":"C199*'Main Calculator'!$C$11","v":649.90000000000009},{"$f":"'Main Calculator'!$C$9*'Main Calculator'!$C$8+(C199/'Main Calculator'!$C$12*'Main Calculator'!$C$10)","v":0}]
[null,null,975,{"$f":"C200*'Main Calculator'!$C$11","v":653.25},{"$f":"'Main Calculator'!$C$9*'Main Calculator'!$C$8+(C200/'Main Calculator'!$C$12*'Main Calculator'!$C$10)","v":0}]
[null,null,980,{"$f":"C201*'Main Calculator'!$C$11","v":656.6},{"$f":"'Main Calculator'!$C$9*'Main Calculator'!$C$8+(C201/'Main Calculator'!$C$12*'Main Calculator'!$C$10)","v":0}]
[null,null,985,{"$f":"C202*'Main Calculator'!$C$11","v":659.95},{"$f":"'Main Calculator'!$C$9*'Main Calculator'!$C$8+(C202/'Main Calculator'!$C$12*'Main Calculator'!$C$10)","v":0}]
[null,null,990,{"$f":"C203*'Main Calculator'!$C$11","v":663.30000000000007},{"$f":"'Main Calculator'!$C$9*'Main Calculator'!$C$8+(C203/'Main Calculator'!$C$12*'Main Calculator'!$C$10)","v":0}]
[null,null,995,{"$f":"C204*'Main Calculator'!$C$11","v":666.65000000000009},{"$f":"'Main Calculator'!$C$9*'Main Calculator'!$C$8+(C204/'Main Calculator'!$C$12*'Main Calculator'!$C$10)","v":0}]
[null,null,1000,{"$f":"C205*'Main Calculator'!$C$11","v":670},{"$f":"'Main Calculator'!$C$9*'Main Calculator'!$C$8+(C205/'Main Calculator'!$C$12*'Main Calculator'!$C$10)","v":0}]